[Event "EYCC Open-U14 2019"]
[Site "Bratislava"]
[Date "2019.08.08"]
[Round "7.22"]
[White "Papadiamandis, Elliot"]
[Black "Ochedzan, Tymon"]
[Result "1-0"]
[ECO "B24"]
[WhiteElo "2202"]
[BlackElo "2037"]
[Annotator "NA"]
[PlyCount "83"]
[EventDate "2019.08.02"]
[EventType "swiss"]
[EventCountry "SVK"]
[SourceTitle "playchess.com"]
[Source "ChessBase"]
[SourceQuality "1"]
[TimeControl "40/5400+30:1800+30"]

1. e4 {[%emt 0:00:00]} c5 {[%emt 0:00:00]} 2. Nc3 {[%emt 0:00:12]} Nc6 {[%emt 0:00:28]} 3. Nf3 {[%emt 0:00:57]} e5 {[%emt 0:08:37]} 4. Bc4 {[%emt 0:01:20]} d6 {[%emt 0:04:22]} 5. d3 {[%emt 0:01:46]} Be7 {[%emt 0:03:29]} 6. Nd2 {[%emt 0:01:13]} Nf6 {[%emt 0:02:14]} 7. Nf1 {[%emt 0:06:34]} O-O {[%emt 0:03:40]} 8. Ne3 {[%emt 0:00:48]} Na5 {[%emt 0:05:28]} 9. Bd5 {[%emt 0:07:01]} Nxd5 {[%emt 0:02:31]} 10. Ncxd5 {[%emt 0:03:58]} Be6 {[%emt 0:02:39]} 11. O-O {[%emt 0:01:44]} Bg5 {[%emt 0:06:01]} 12. Nc3 {[%emt 0:06:59]} Nc6 {[%emt 0:02:46]} 13. Ned5 {[%emt 0:03:11]} Bxc1 {[%emt 0:04:42]} 14. Rxc1 {[%emt 0:02:19]} Nd4 {[%emt 0:02:38]} 15. f4 {[%emt 0:06:52]} exf4 {[%emt 0:01:38]} 16. Nxf4 {[%emt 0:01:58]} Qg5 {[%emt 0:05:22]} 17. Qe1 {[%emt 0:07:44]} b5 {[%emt 0:02:44]} 18. Qf2 {[%emt 0:02:53]} b4 {[%emt 0:04:00]} 19. Nce2 {[%emt 0:06:34]} Nxe2+ {[%emt 0:00:57]} 20. Qxe2 {[%emt 0:01:44]} a5 {[%emt 0:01:34]} 21. a4 {[%emt 0:03:54]} bxa3 {[%emt 0:02:33]} 22. bxa3 {[%emt 0:00:31]} Bg4 {[%emt 0:01:48]} 23. Qf2 {[%emt 0:02:23]} Rab8 {[%emt 0:04:00]} 24. Qg3 {[%emt 0:01:47]} f6 {[%emt 0:02:07]} 25. h4 {[%emt 0:00:18]} Qe5 {[%emt 0:05:30]} 26. Qxg4 {[%emt 0:00:41]} f5 {[%emt 0:01:44]} 27. Qf3 {[%emt 0:01:15]} Qb2 {[%emt 0:02:09]} 28. Ne6 {[%emt 0:01:45]} Rf7 {[%emt 0:00:22]} 29. exf5 {[%emt 0:01:18]} Qxa3 {[%emt 0:00:23]} 30. Ng5 {[%emt 0:00:34]} Rf6 {[%emt 0:01:01]} 31. Qd5+ {[%emt 0:00:55]} Kh8 {[%emt 0:00:26]} 32. Nf7+ {[%emt 0:00:32]} Kg8 {[%emt 0:00:08]} 33. Ne5+ {[%emt 0:00:31]} Kh8 {[%emt 0:00:40]} 34. Nd7 {[%emt 0:00:23]} Qb2 {[%emt 0:01:10]} 35. Nxb8 {[%emt 0:00:35]} Qxb8 {[%emt 0:00:08]} 36. Rb1 {[%emt 0:00:47]} Qd8 {[%emt 0:00:21]} 37. Rb7 {[%emt 0:00:47]} Rf8 {[%emt 0:00:30]} 38. f6 {[%emt 0:00:25]} Rxf6 {[%emt 0:00:24]} 39. Rxf6 {[%emt 0:00:30]} gxf6 {[%emt 0:00:04]} 40. Qf5 {[%emt 0:00:00]} Qg8 {[%emt 0:00:00]} 41. Qxf6+ {[%emt 0:01:17]} Qg7 {[%emt 0:00:19]} 42. Qxg7# {[%emt 0:00:03]} 1-0

[Event "EYCC Open-U14 2019"]
[Site "Bratislava"]
[Date "2019.08.08"]
[Round "7.23"]
[White "Hak, David"]
[Black "Fule, Simon"]
[Result "0-1"]
[ECO "C45"]
[WhiteElo "2012"]
[BlackElo "2184"]
[Annotator "NA"]
[PlyCount "154"]
[EventDate "2019.08.02"]
[EventType "swiss"]
[EventCountry "SVK"]
[SourceTitle "playchess.com"]
[Source "ChessBase"]
[SourceQuality "1"]
[TimeControl "40/5400+30:1800+30"]

1. e4 {[%emt 0:00:00]} e5 {[%emt 0:00:00]} 2. Nf3 {[%emt 0:00:00]} Nc6 {[%emt 0:00:00]} 3. d4 {[%emt 0:00:00]} exd4 {[%emt 0:00:00]} 4. Nxd4 {[%emt 0:00:00]} Nf6 {[%emt 0:00:00]} 5. Nxc6 {[%emt 0:00:00]} bxc6 {[%emt 0:00:07]} 6. e5 {[%emt 0:00:00]} Qe7 {[%emt 0:00:06]} 7. Qe2 {[%emt 0:00:02]} Nd5 {[%emt 0:00:06]} 8. c4 {[%emt 0:00:03]} Ba6 {[%emt 0:00:05]} 9. b3 {[%emt 0:00:08]} g6 {[%emt 0:00:29]} 10. Ba3 {[%emt 0:09:25]} Nb4 {[%emt 0:01:46]} 11. Bb2 {[%emt 0:05:59]} Bg7 {[%emt 0:05:10]} 12. a3 {[%emt 0:20:33]} Nd5 {[%emt 0:00:07]} 13. Qe4 {[%emt 0:04:39]} f5 {[%emt 0:18:45]} 14. Qd4 {[%emt 0:04:47]} Nb6 {[%emt 0:04:20]} 15. Nd2 {[%emt 0:14:06]} c5 {[%emt 0:10:08]} 16. Qe3 {[%emt 0:02:40]} d6 {[%emt 0:15:49]} 17. f4 {[%emt 0:08:16]} Bb7 {[%emt 0:03:48]} 18. O-O-O {[%emt 0:04:00]} O-O-O {[%emt 0:01:52]} 19. Re1 {[%emt 0:06:05]} Rhe8 {[%emt 0:03:18]} 20. Nf3 {[%emt 0:05:08]} Kb8 {[%emt 0:11:01]} 21. Qf2 {[%emt 0:03:04]} Nd7 {[%emt 0:08:54]} 22. e6 {[%emt 0:09:35]} Nf6 {[%emt 0:06:15]} 23. Ng5 {[%emt 0:01:00]} Ne4 {[%emt 0:00:24]} 24. Nxe4 {[%emt 0:01:05]} Bxe4 {[%emt 0:00:14]} 25. b4 {[%emt 0:01:03]} cxb4 {[%emt 0:02:19]} 26. axb4 {[%emt 0:00:12]} Bxb2+ {[%emt 0:01:02]} 27. Kxb2 {[%emt 0:00:44]} Qf6+ {[%emt 0:00:06]} 28. Kb3 {[%emt 0:00:31]} Rxe6 {[%emt 0:01:15]} 29. Be2 {[%emt 0:00:28]} c5 {[%emt 0:00:45]} 30. Ra1 {[%emt 0:00:36]} Re7 {[%emt 0:00:44]} 31. b5 {[%emt 0:00:25]} Qd4 {[%emt 0:02:07]} 32. Qxd4 {[%emt 0:00:36]} cxd4 {[%emt 0:00:01]} 33. Bf3 {[%emt 0:00:39]} Bxf3 {[%emt 0:00:20]} 34. gxf3 {[%emt 0:00:01]} Re3+ {[%emt 0:00:11]} 35. Kb4 {[%emt 0:00:12]} Rxf3 {[%emt 0:00:18]} 36. Ra6 {[%emt 0:00:36]} Rd7 {[%emt 0:02:21]} 37. Rha1 {[%emt 0:00:52]} Rf2 {[%emt 0:01:03]} 38. b6 {[%emt 0:00:41]} Rb2+ {[%emt 0:00:30]} 39. Ka5 {[%emt 0:00:20]} d3 {[%emt 0:00:51]} 40. Re1 {[%emt 0:00:00]} Rxb6 {[%emt 0:00:00]} 41. Rxb6+ {[%emt 0:02:03]} axb6+ {[%emt 0:02:39]} 42. Kxb6 {[%emt 0:00:20]} Rc7 {[%emt 0:04:49]} 43. Re8+ {[%emt 0:01:18]} Rc8 {[%emt 0:00:05]} 44. Re6 {[%emt 0:13:13]} Rxc4 {[%emt 0:00:17]} 45. Rxd6 {[%emt 0:02:42]} Rb4+ {[%emt 0:00:10]} 46. Kc6 {[%emt 0:00:36]} Rxf4 {[%emt 0:01:33]} 47. Rd8+ {[%emt 0:00:18]} Ka7 {[%emt 0:00:07]} 48. Rd7+ {[%emt 0:01:09]} Ka6 {[%emt 0:00:11]} 49. Rxd3 {[%emt 0:00:23]} Rc4+ {[%emt 0:00:23]} 50. Kd5 {[%emt 0:00:36]} Rh4 {[%emt 0:02:11]} 51. Kc6 {[%emt 0:01:20]} Ka5 {[%emt 0:01:00]} 52. Kc5 {[%emt 0:00:13]} Ka4 {[%emt 0:00:06]} 53. h3 {[%emt 0:00:39]} Re4 {[%emt 0:02:02]} 54. Rf3 {[%emt 0:01:00]} Rb4 {[%emt 0:02:58]} 55. Rd3 {[%emt 0:02:53]} Rb3 {[%emt 0:00:54]} 56. Rd4+ {[%emt 0:00:47]} Ka3 {[%emt 0:00:01]} 57. Rh4 {[%emt 0:02:09]} h5 {[%emt 0:00:23]} 58. Rf4 {[%emt 0:01:52]} Rxh3 {[%emt 0:00:10]} 59. Rf2 {[%emt 0:00:13]} Rh4 {[%emt 0:01:26]} 60. Kd6 {[%emt 0:01:10]} Kb3 {[%emt 0:00:19]} 61. Ke5 {[%emt 0:00:57]} Rg4 {[%emt 0:01:15]} 62. Rd2 {[%emt 0:00:21]} Kc3 {[%emt 0:00:08]} 63. Rd8 {[%emt 0:00:24]} h4 {[%emt 0:03:52]} 64. Rd7 {[%emt 0:01:00]} h3 {[%emt 0:02:02]} 65. Rh7 {[%emt 0:00:35]} Kd3 {[%emt 0:00:08]} 66. Rxh3+ {[%emt 0:00:20]} Ke2 {[%emt 0:00:01]} 67. Ra3 {[%emt 0:01:26]} Kf2 {[%emt 0:00:06]} 68. Ra2+ {[%emt 0:01:35]} Kg3 {[%emt 0:00:08]} 69. Ra3+ Kh4 {[%emt 0:00:25]} 70. Kf6 {[%emt 0:01:19]} f4 {[%emt 0:04:32]} 71. Ke5 {[%emt 0:02:01]} g5 {[%emt 0:00:33]} 72. Rf3 {[%emt 0:01:36]} Rg3 {[%emt 0:00:18]} 73. Rf1 {[%emt 0:00:47]} Kg4 {[%emt 0:00:07]} 74. Ke4 {[%emt 0:00:13]} Re3+ {[%emt 0:00:06]} 75. Kd4 {[%emt 0:00:08]} Re8 {[%emt 0:04:37]} 76. Rg1+ {[%emt 0:00:11]} Kf5 {[%emt 0:00:06]} 77. Ra1 {[%emt 0:00:07]} f3 {[%emt 0:00:11]} 0-1

[Event "EYCC Open-U14 2019"]
[Site "Bratislava"]
[Date "2019.08.08"]
[Round "7.24"]
[White "Kusa, Jakub"]
[Black "Frank, Adam"]
[Result "1-0"]
[ECO "C84"]
[WhiteElo "2199"]
[BlackElo "2125"]
[Annotator "NA"]
[PlyCount "103"]
[EventDate "2019.08.02"]
[EventType "swiss"]
[EventCountry "SVK"]
[SourceTitle "playchess.com"]
[Source "ChessBase"]
[SourceQuality "1"]
[TimeControl "40/5400+30:1800+30"]

1. e4 {[%emt 0:00:00]} e5 {[%emt 0:00:00]} 2. Nf3 {[%emt 0:00:00]} Nc6 {[%emt 0:00:00]} 3. Bb5 {[%emt 0:00:00]} a6 {[%emt 0:00:00]} 4. Ba4 {[%emt 0:00:08]} Nf6 {[%emt 0:00:00]} 5. O-O {[%emt 0:00:13]} Be7 {[%emt 0:00:00]} 6. d3 {[%emt 0:00:19]} d6 {[%emt 0:00:04]} 7. Nc3 {[%emt 0:01:08]} O-O {[%emt 0:00:52]} 8. a3 {[%emt 0:01:38]} b5 {[%emt 0:04:55]} 9. Bb3 {[%emt 0:00:08]} Be6 {[%emt 0:01:54]} 10. Nd5 {[%emt 0:02:21]} Na5 {[%emt 0:07:46]} 11. Nxf6+ {[%emt 0:10:11]} Bxf6 {[%emt 0:00:05]} 12. Bxe6 {[%emt 0:00:41]} fxe6 {[%emt 0:00:04]} 13. b4 {[%emt 0:01:15]} Nc6 {[%emt 0:01:36]} 14. Bb2 {[%emt 0:05:50]} Qe8 {[%emt 0:08:26]} 15. c4 {[%emt 0:05:10]} Nd4 {[%emt 0:01:37]} 16. Bxd4 {[%emt 0:10:01]} exd4 {[%emt 0:00:06]} 17. e5 {[%emt 0:01:24]} Bxe5 {[%emt 0:03:12]} 18. Nxe5 {[%emt 0:01:03]} dxe5 {[%emt 0:00:04]} 19. Re1 {[%emt 0:02:02]} Rf5 {[%emt 0:06:22]} 20. Rc1 {[%emt 0:05:17]} Qf7 {[%emt 0:24:28]} 21. f3 {[%emt 0:02:30]} h5 {[%emt 0:01:46]} 22. Re4 {[%emt 0:02:51]} a5 {[%emt 0:12:19]} 23. cxb5 {[%emt 0:05:41]} axb4 {[%emt 0:00:04]} 24. a4 {[%emt 0:01:56]} Qe7 {[%emt 0:02:08]} 25. Qb3 {[%emt 0:02:21]} Kh7 {[%emt 0:01:31]} 26. h4 {[%emt 0:07:44]} Rf4 {[%emt 0:05:48]} 27. Rxe5 {[%emt 0:06:03]} Qxh4 {[%emt 0:03:56]} 28. Rcc5 {[%emt 0:01:36]} g6 {[%emt 0:01:30]} 29. Qxe6 {[%emt 0:03:02]} Rxa4 {[%emt 0:02:38]} 30. Rxh5+ {[%emt 0:10:14]} Qxh5 {[%emt 0:00:04]} 31. Rxh5+ {[%emt 0:00:28]} gxh5 {[%emt 0:00:03]} 32. g3 {[%emt 0:02:29]} Rf8 {[%emt 0:00:06]} 33. Qe7+ {[%emt 0:00:13]} Kg8 {[%emt 0:00:03]} 34. Qg5+ {[%emt 0:00:15]} Kf7 {[%emt 0:01:48]} 35. Qxh5+ {[%emt 0:00:35]} Kg7 {[%emt 0:00:49]} 36. Qg5+ {[%emt 0:01:32]} Kh7 {[%emt 0:02:25]} 37. Qh4+ {[%emt 0:00:28]} Kg8 {[%emt 0:00:46]} 38. Qg4+ {[%emt 0:00:28]} Kh7 {[%emt 0:00:35]} 39. Qxd4 {[%emt 0:01:37]} Rfa8 {[%emt 0:01:18]} 40. Qh4+ {[%emt 0:00:00]} Kg6 {[%emt 0:00:00]} 41. Qg4+ {[%emt 0:05:08]} Kf6 {[%emt 0:03:07]} 42. Qf4+ {[%emt 0:01:01]} Kg6 {[%emt 0:00:19]} 43. Qe4+ {[%emt 0:00:32]} Kg5 {[%emt 0:01:14]} 44. Qd5+ {[%emt 0:00:39]} Kf6 {[%emt 0:00:34]} 45. Qc6+ {[%emt 0:01:56]} Kg5 {[%emt 0:01:03]} 46. Kf2 {[%emt 0:02:15]} Ra2+ {[%emt 0:13:27]} 47. Ke3 {[%emt 0:00:12]} R8a4 {[%emt 0:00:19]} 48. Qe6 {[%emt 0:04:58]} R2a3 {[%emt 0:01:20]} 49. f4+ {[%emt 0:03:58]} Kh5 {[%emt 0:00:35]} 50. Qg8 {[%emt 0:00:22]} Kh6 {[%emt 0:00:05]} 51. f5 {[%emt 0:00:29]} Kh5 {[%emt 0:00:03]} 52. Qg6# {[%emt 0:00:11]} 1-0

[Event "EYCC Open-U14 2019"]
[Site "Bratislava"]
[Date "2019.08.08"]
[Round "7.25"]
[White "Luczak, Filip"]
[Black "Schlegel, Igor"]
[Result "1-0"]
[ECO "B90"]
[WhiteElo "2144"]
[BlackElo "1968"]
[Annotator "NA"]
[PlyCount "45"]
[EventDate "2019.08.02"]
[EventType "swiss"]
[EventCountry "SVK"]
[SourceTitle "playchess.com"]
[Source "ChessBase"]
[SourceQuality "1"]
[TimeControl "40/5400+30:1800+30"]

1. e4 {[%emt 0:00:00]} c5 {[%emt 0:00:00]} 2. Nf3 {[%emt 0:00:00]} d6 3. d4 {[%emt 0:00:00]} cxd4 {[%emt 0:00:00]} 4. Nxd4 {[%emt 0:00:00]} Nf6 {[%emt 0:00:00]} 5. Nc3 {[%emt 0:00:00]} a6 {[%emt 0:00:00]} 6. Nb3 {[%emt 0:00:00]} e6 {[%emt 0:00:54]} 7. g4 {[%emt 0:00:01]} b5 {[%emt 0:01:08]} 8. Bg2 {[%emt 0:00:41]} Bb7 {[%emt 0:00:36]} 9. g5 {[%emt 0:00:46]} Nfd7 {[%emt 0:01:26]} 10. f4 {[%emt 0:02:34]} Be7 {[%emt 0:07:55]} 11. O-O {[%emt 0:01:18]} O-O {[%emt 0:27:18]} 12. h4 {[%emt 0:09:30]} Nc6 {[%emt 0:18:28]} 13. Qg4 {[%emt 0:25:25]} a5 {[%emt 0:12:23]} 14. Be3 {[%emt 0:06:51]} b4 {[%emt 0:01:18]} 15. Ne2 {[%emt 0:05:17]} Nb6 {[%emt 0:01:25]} 16. f5 {[%emt 0:05:45]} Nc4 {[%emt 0:00:46]} 17. Bf2 {[%emt 0:00:25]} N6e5 {[%emt 0:00:17]} 18. Qg3 {[%emt 0:00:32]} d5 {[%emt 0:05:45]} 19. Nc5 {[%emt 0:05:55]} Nd7 {[%emt 0:13:41]} 20. Nxb7 {[%emt 0:01:10]} Qc8 {[%emt 0:02:38]} 21. exd5 {[%emt 0:01:36]} exd5 {[%emt 0:00:16]} 22. Bxd5 {[%emt 0:00:51]} Nce5 {[%emt 0:00:14]} 23. f6 {[%emt 0:01:11]} 1-0

[Event "EYCC Open-U14 2019"]
[Site "Bratislava"]
[Date "2019.08.08"]
[Round "7.26"]
[White "Droin, Augustin"]
[Black "Lopez Varela, Pablo"]
[Result "0-1"]
[ECO "B48"]
[WhiteElo "2172"]
[BlackElo "2131"]
[Annotator "NA"]
[PlyCount "126"]
[EventDate "2019.08.02"]
[EventType "swiss"]
[EventCountry "SVK"]
[SourceTitle "playchess.com"]
[Source "ChessBase"]
[SourceQuality "1"]
[TimeControl "40/5400+30:1800+30"]

1. e4 {[%emt 0:00:00]} c5 {[%emt 0:00:00]} 2. Nf3 {[%emt 0:00:00]} e6 {[%emt 0:00:00]} 3. d4 {[%emt 0:00:38]} cxd4 {[%emt 0:00:00]} 4. Nxd4 {[%emt 0:00:04]} Nc6 {[%emt 0:00:00]} 5. Nc3 {[%emt 0:00:30]} Qc7 {[%emt 0:00:00]} 6. Be3 {[%emt 0:00:38]} a6 {[%emt 0:00:00]} 7. a3 {[%emt 0:00:16]} b5 {[%emt 0:00:05]} 8. Nxc6 {[%emt 0:00:25]} Qxc6 {[%emt 0:01:19]} 9. Be2 {[%emt 0:01:29]} Bb7 {[%emt 0:00:09]} 10. Bf3 {[%emt 0:05:16]} Qc7 {[%emt 0:02:35]} 11. Qd2 {[%emt 0:03:01]} Bc6 {[%emt 0:04:52]} 12. O-O-O {[%emt 0:07:09]} a5 {[%emt 0:06:44]} 13. Nd5 {[%emt 0:03:53]} Qb7 {[%emt 0:10:10]} 14. Nb6 {[%emt 0:06:15]} Ra6 {[%emt 0:03:04]} 15. Qd4 {[%emt 0:02:53]} Ne7 {[%emt 0:13:29]} 16. a4 {[%emt 0:09:06]} e5 {[%emt 0:08:33]} 17. Qxe5 {[%emt 0:00:43]} Rxb6 {[%emt 0:00:10]} 18. Bxb6 {[%emt 0:00:50]} Qxb6 {[%emt 0:00:05]} 19. axb5 {[%emt 0:06:47]} Bxb5 {[%emt 0:02:09]} 20. Rd6 {[%emt 0:01:17]} Bc6 {[%emt 0:01:45]} 21. Bg4 {[%emt 0:01:09]} f6 {[%emt 0:06:22]} 22. Qc3 {[%emt 0:09:23]} Qxf2 {[%emt 0:05:31]} 23. g3 {[%emt 0:11:46]} h5 {[%emt 0:04:46]} 24. Bh3 {[%emt 0:00:33]} h4 {[%emt 0:02:09]} 25. Rd2 {[%emt 0:01:15]} Qb6 {[%emt 0:05:59]} 26. Rhd1 {[%emt 0:02:52]} hxg3 {[%emt 0:00:03]} 27. Qxg3 {[%emt 0:00:49]} Rh5 {[%emt 0:03:43]} 28. Bxd7+ {[%emt 0:04:56]} Bxd7 {[%emt 0:00:05]} 29. Rxd7 {[%emt 0:00:06]} Re5 {[%emt 0:02:19]} 30. Qh3 {[%emt 0:02:24]} Kf7 {[%emt 0:01:21]} 31. Rd8 {[%emt 0:01:30]} Ng6 {[%emt 0:05:38]} 32. Qd7+ {[%emt 0:01:43]} Kg8 {[%emt 0:00:04]} 33. Qd3 {[%emt 0:00:34]} Nf4 {[%emt 0:03:38]} 34. Qc4+ {[%emt 0:01:27]} Qe6 {[%emt 0:00:41]} 35. Qc7 {[%emt 0:02:00]} Ng6 {[%emt 0:00:05]} 36. R1d7 {[%emt 0:00:14]} Ne7 {[%emt 0:01:03]} 37. Qb8 {[%emt 0:01:10]} Ng6 {[%emt 0:00:37]} 38. Qc7 {[%emt 0:01:56]} Kh7 {[%emt 0:01:01]} 39. Rd4 {[%emt 0:04:09]} Rxe4 {[%emt 0:00:43]} 40. Rxe4 {[%emt 0:00:00]} Qxe4 {[%emt 0:00:00]} 41. Qxa5 {[%emt 0:01:39]} Qh1+ {[%emt 0:03:18]} 42. Rd1 {[%emt 0:00:06]} Qxh2 {[%emt 0:00:27]} 43. Qd5 {[%emt 0:02:54]} Qf4+ {[%emt 0:06:57]} 44. Kb1 {[%emt 0:00:30]} Nh4 {[%emt 0:00:40]} 45. Qf7 {[%emt 0:12:44]} Qg4 {[%emt 0:12:34]} 46. Rd5 {[%emt 0:00:53]} Ng6 {[%emt 0:00:43]} 47. Rd8 {[%emt 0:07:33]} Bc5 {[%emt 0:01:59]} 48. Qd5 {[%emt 0:00:39]} Be3 {[%emt 0:01:42]} 49. Re8 {[%emt 0:02:19]} Bg5 {[%emt 0:00:46]} 50. Qh1+ {[%emt 0:04:56]} Qh4 {[%emt 0:01:38]} 51. Qd5 {[%emt 0:00:38]} Qf4 {[%emt 0:00:44]} 52. Qh1+ {[%emt 0:00:31]} Nh4 {[%emt 0:00:20]} 53. Re4 {[%emt 0:01:06]} Qg3 {[%emt 0:00:19]} 54. Qd1 {[%emt 0:00:26]} Nf3 {[%emt 0:00:40]} 55. Qh1+ {[%emt 0:00:34]} Kg6 {[%emt 0:00:26]} 56. Ka2 {[%emt 0:01:46]} Qf2 {[%emt 0:00:54]} 57. Ra4 {[%emt 0:00:01]} Qxc2 {[%emt 0:01:11]} 58. Rb4 {[%emt 0:01:04]} Nd2 {[%emt 0:01:40]} 59. Qe1 {[%emt 0:01:15]} Qc6 {[%emt 0:00:56]} 60. Qd1 {[%emt 0:00:46]} Qd5+ {[%emt 0:01:12]} 61. b3 {[%emt 0:00:29]} f5 {[%emt 0:01:58]} 62. Qe2 {[%emt 0:01:28]} Ne4 {[%emt 0:00:26]} 63. Rb6+ {[%emt 0:00:08]} Bf6 {[%emt 0:00:17]} 0-1

[Event "EYCC Open-U14 2019"]
[Site "Bratislava"]
[Date "2019.08.08"]
[Round "7.27"]
[White "Neumann, Filip"]
[Black "Pozzari, Simone"]
[Result "1-0"]
[ECO "B03"]
[WhiteElo "1982"]
[BlackElo "2179"]
[Annotator "NA"]
[PlyCount "137"]
[EventDate "2019.08.02"]
[EventType "swiss"]
[EventCountry "SVK"]
[SourceTitle "playchess.com"]
[Source "ChessBase"]
[SourceQuality "1"]
[TimeControl "40/5400+30:1800+30"]

1. e4 {[%emt 0:00:00]} Nf6 {[%emt 0:00:00]} 2. e5 {[%emt 0:01:48]} Nd5 {[%emt 0:00:00]} 3. d4 {[%emt 0:03:22]} d6 {[%emt 0:00:00]} 4. exd6 {[%emt 0:00:32]} exd6 {[%emt 0:00:03]} 5. Bd3 {[%emt 0:01:25]} Be7 {[%emt 0:00:13]} 6. c3 {[%emt 0:00:56]} c6 {[%emt 0:02:44]} 7. Ne2 {[%emt 0:00:59]} O-O {[%emt 0:00:20]} 8. Ng3 {[%emt 0:01:02]} f5 {[%emt 0:12:06]} 9. Qc2 {[%emt 0:12:39]} g6 {[%emt 0:03:58]} 10. Bh6 {[%emt 0:04:02]} Re8 {[%emt 0:00:24]} 11. O-O {[%emt 0:01:25]} Bg5 {[%emt 0:01:42]} 12. Bxg5 {[%emt 0:02:27]} Qxg5 {[%emt 0:00:03]} 13. Nd2 {[%emt 0:01:23]} Nf4 {[%emt 0:12:57]} 14. Rfe1 {[%emt 0:07:22]} Be6 {[%emt 0:00:36]} 15. Bc4 {[%emt 0:04:54]} d5 {[%emt 0:01:48]} 16. Bf1 {[%emt 0:00:24]} Nd7 {[%emt 0:01:25]} 17. Nf3 {[%emt 0:00:40]} Qh6 {[%emt 0:02:23]} 18. Qd2 {[%emt 0:10:26]} Nf6 {[%emt 0:01:36]} 19. Ne2 {[%emt 0:02:02]} Nxe2+ {[%emt 0:02:12]} 20. Rxe2 {[%emt 0:00:52]} f4 {[%emt 0:01:35]} 21. Ne5 {[%emt 0:06:13]} Ne4 {[%emt 0:05:17]} 22. Qe1 {[%emt 0:03:14]} g5 {[%emt 0:09:51]} 23. Nd3 {[%emt 0:06:15]} g4 {[%emt 0:05:56]} 24. Qc1 {[%emt 0:07:50]} Rf8 {[%emt 0:00:10]} 25. g3 {[%emt 0:01:14]} Ng5 {[%emt 0:00:28]} 26. Bg2 {[%emt 0:00:11]} Bf5 {[%emt 0:18:05]} 27. Nxf4 {[%emt 0:02:34]} Be4 {[%emt 0:00:02]} 28. Ne6 {[%emt 0:02:04]} Rf5 {[%emt 0:15:26]} 29. Nxg5 {[%emt 0:01:17]} Bxg2 {[%emt 0:00:42]} 30. Kxg2 {[%emt 0:00:35]} Rxg5 {[%emt 0:00:14]} 31. Kg1 {[%emt 0:01:47]} Qh5 {[%emt 0:02:14]} 32. Qe3 {[%emt 0:01:55]} Rg6 {[%emt 0:00:31]} 33. Rae1 {[%emt 0:10:12]} Rf8 {[%emt 0:00:40]} 34. Qe7 {[%emt 0:00:39]} Rh6 {[%emt 0:00:21]} 35. Qh4 {[%emt 0:00:35]} Qg6 {[%emt 0:00:46]} 36. Re6 {[%emt 0:00:56]} Qxe6 {[%emt 0:00:18]} 37. Rxe6 {[%emt 0:00:07]} Rxe6 {[%emt 0:00:01]} 38. Qxg4+ {[%emt 0:00:08]} Rg6 {[%emt 0:00:01]} 39. Qd7 {[%emt 0:00:41]} Rf7 {[%emt 0:00:02]} 40. Qe8+ {[%emt 0:00:00]} Rf8 {[%emt 0:00:00]} 41. Qe7 {[%emt 0:01:50]} Rf7 {[%emt 0:10:48]} 42. Qe5 {[%emt 0:00:39]} a6 {[%emt 0:01:08]} 43. f4 {[%emt 0:00:43]} Rgf6 {[%emt 0:00:52]} 44. Kg2 {[%emt 0:00:27]} Rf5 {[%emt 0:01:41]} 45. Qe6 {[%emt 0:01:15]} R5f6 {[%emt 0:02:56]} 46. Qc8+ {[%emt 0:00:15]} Kg7 {[%emt 0:00:01]} 47. Qe8 {[%emt 0:00:11]} Rf8 {[%emt 0:01:33]} 48. Qe5 {[%emt 0:00:07]} Kg6 {[%emt 0:00:42]} 49. Kf3 {[%emt 0:00:42]} Rf5 {[%emt 0:02:01]} 50. Qe7 {[%emt 0:00:10]} R8f7 {[%emt 0:00:06]} 51. Qe8 {[%emt 0:00:07]} Kg7 {[%emt 0:00:38]} 52. Qe6 {[%emt 0:02:44]} h5 {[%emt 0:01:52]} 53. Qd6 {[%emt 0:01:07]} R7f6 {[%emt 0:04:08]} 54. Qb8 {[%emt 0:00:26]} Rf7 {[%emt 0:04:23]} 55. h3 {[%emt 0:00:43]} Re7 {[%emt 0:01:02]} 56. g4 {[%emt 0:00:16]} Rff7 {[%emt 0:00:35]} 57. Qd6 {[%emt 0:01:33]} Re1 {[%emt 0:01:47]} 58. f5 {[%emt 0:00:17]} hxg4+ {[%emt 0:00:50]} 59. hxg4 {[%emt 0:00:05]} Rf1+ {[%emt 0:00:11]} 60. Kg3 {[%emt 0:00:18]} Rg1+ {[%emt 0:00:43]} 61. Kh4 {[%emt 0:00:28]} Kh8 {[%emt 0:01:13]} 62. Qe5+ {[%emt 0:03:31]} Kh7 {[%emt 0:00:01]} 63. f6 {[%emt 0:00:45]} Rf1 {[%emt 0:01:49]} 64. Kg5 {[%emt 0:00:07]} Rf2 {[%emt 0:01:53]} 65. Qe6 {[%emt 0:00:17]} Rc7 {[%emt 0:00:04]} 66. Qe3 {[%emt 0:01:51]} Rxb2 {[%emt 0:00:46]} 67. Qh3+ {[%emt 0:00:13]} Kg8 {[%emt 0:00:03]} 68. Kg6 {[%emt 0:00:05]} Rf2 {[%emt 0:00:33]} 69. Qg3 {[%emt 0:00:07]} 1-0

[Event "EYCC Open-U14 2019"]
[Site "Bratislava"]
[Date "2019.08.08"]
[Round "7.28"]
[White "Jares, Michal"]
[Black "Laptii, Nazar"]
[Result "0-1"]
[ECO "B06"]
[WhiteElo "1974"]
[BlackElo "2133"]
[Annotator "NA"]
[PlyCount "82"]
[EventDate "2019.08.02"]
[EventType "swiss"]
[EventCountry "SVK"]
[SourceTitle "playchess.com"]
[Source "ChessBase"]
[SourceQuality "1"]
[TimeControl "40/5400+30:1800+30"]

1. d4 {[%emt 0:00:00]} g6 {[%emt 0:00:00]} 2. e4 {[%emt 0:00:00]} Bg7 {[%emt 0:00:00]} 3. Nc3 {[%emt 0:00:31]} d6 {[%emt 0:00:00]} 4. f4 {[%emt 0:00:40]} a6 {[%emt 0:00:00]} 5. Nf3 {[%emt 0:00:58]} b5 {[%emt 0:00:06]} 6. Bd3 {[%emt 0:02:42]} Nd7 {[%emt 0:00:17]} 7. a4 {[%emt 0:01:40]} b4 {[%emt 0:00:39]} 8. Ne2 {[%emt 0:00:02]} c5 {[%emt 0:05:47]} 9. c3 {[%emt 0:01:11]} cxd4 {[%emt 0:05:09]} 10. cxd4 {[%emt 0:00:35]} Ngf6 {[%emt 0:02:31]} 11. O-O {[%emt 0:15:24]} O-O {[%emt 0:00:26]} 12. e5 {[%emt 0:12:00]} Nd5 {[%emt 0:00:48]} 13. Ng5 {[%emt 0:07:57]} e6 {[%emt 0:07:17]} 14. Ng3 {[%emt 0:11:59]} Qb6 {[%emt 0:05:02]} 15. Kh1 {[%emt 0:06:09]} Bb7 {[%emt 0:14:04]} 16. N3e4 {[%emt 0:10:11]} dxe5 {[%emt 0:00:42]} 17. dxe5 {[%emt 0:01:02]} Nc5 {[%emt 0:01:57]} 18. Nxc5 {[%emt 0:03:50]} Qxc5 {[%emt 0:00:12]} 19. Ne4 {[%emt 0:02:10]} Qc6 {[%emt 0:01:35]} 20. Qf3 {[%emt 0:02:28]} f6 {[%emt 0:15:34]} 21. exf6 {[%emt 0:02:27]} Nxf6 {[%emt 0:00:44]} 22. Nxf6+ {[%emt 0:01:23]} Bxf6 {[%emt 0:00:16]} 23. Qxc6 {[%emt 0:00:13]} Bxc6 {[%emt 0:00:02]} 24. Bc4 {[%emt 0:02:27]} Bd5 {[%emt 0:02:30]} 25. Bxd5 {[%emt 0:01:00]} exd5 {[%emt 0:00:00]} 26. Rd1 {[%emt 0:03:49]} Rfe8 {[%emt 0:02:10]} 27. Kg1 {[%emt 0:03:21]} Rad8 {[%emt 0:03:36]} 28. Rb1 {[%emt 0:03:38]} d4 {[%emt 0:02:37]} 29. Bd2 {[%emt 0:01:32]} a5 {[%emt 0:00:11]} 30. Re1 {[%emt 0:02:29]} d3 {[%emt 0:00:47]} 31. Rxe8+ {[%emt 0:00:53]} Rxe8 {[%emt 0:00:02]} 32. Rd1 {[%emt 0:00:41]} Bxb2 {[%emt 0:00:34]} 33. Kf1 {[%emt 0:00:32]} Kf7 {[%emt 0:01:54]} 34. Be1 {[%emt 0:00:29]} Rd8 {[%emt 0:03:04]} 35. Bf2 {[%emt 0:00:32]} Bc3 {[%emt 0:00:37]} 36. Rb1 {[%emt 0:00:32]} d2 {[%emt 0:02:34]} 37. Rd1 {[%emt 0:00:24]} Re8 {[%emt 0:00:05]} 38. g3 {[%emt 0:00:34]} b3 {[%emt 0:00:06]} 39. Rb1 {[%emt 0:00:33]} b2 {[%emt 0:00:07]} 40. h3 {[%emt 0:00:00]} Re1+ {[%emt 0:00:00]} 41. Bxe1 {[%emt 0:00:32]} dxe1=Q+ {[%emt 0:00:32]} 0-1